bitfinex/quotes_SOLUSD_20251130
["timestamp","ask_amount","ask_price","bid_price","bid_amount"]
[1764461910594,3.91630337,136.57,136.55,7.32332478]
[1764461911208,3.91630337,136.57,136.55,8.04332478]
[1764461911409,3.91630337,136.57,136.55,7.32332478]
[1764461911610,3.91630337,136.57,136.55,0.72]
[1764461912813,3.91630337,136.57,136.55,8.04280632]
[1764461913487,3.91630337,136.56,136.52,62.8]
[1764461913693,3.24630337,136.54,136.51,31.91994132]
[1764461913892,3.24630337,136.54,136.52,0.86216157]
[1764461914116,3.24630337,136.54,136.52,1.00432314]
[1764461914297,3.91630337,136.54,136.52,1.00432314]
[1764461914707,3.24630337,136.54,136.52,7.60882917]
[1764461914913,3.91630337,136.53,136.5,8.0458116]
[1764461915112,3.24630337,136.52,136.5,8.0458116]
[1764461915413,3.91630337,136.53,136.51,0.72]
[1764461916610,3.91630337,136.53,136.51,8.04534599]
[1764461917199,3.24630337,136.53,136.5,7.32589616]
[1764461917400,0.67,136.52,136.5,7.32589616]
[1764461917604,3.24630337,136.53,136.5,8.04589616]
[1764461917605,3.91630337,136.53,136.5,8.04589616]
[1764461920206,3.24630337,136.52,136.5,8.04589616]
[1764461920825,3.24630337,136.52,136.5,7.32589616]
[1764461921026,3.91630337,136.52,136.5,7.32589616]
[1764461921508,7.16260674,136.51,136.45,7.32869182]
[1764461921713,3.24630337,136.46,136.45,7.32869182]
[1764461921898,3.24630337,136.46,136.44,7.3290449]
[1764461922103,3.91630337,136.45,136.43,7.32968707]
[1764461922703,3.91630337,136.44,136.41,0.2]
[1764461922903,3.24630337,136.43,136.41,0.2]
[1764461923119,3.24630337,136.42,136.41,0.2]
[1764461923714,3.91630337,136.43,136.41,0.2]
[1764461924413,3.24630337,136.43,136.41,0.2]
[1764461924610,3.91630337,136.42,136.41,0.2]
[1764461925404,3.24630337,136.42,136.41,0.2]
[1764461925605,3.91630337,136.43,136.41,0.92]
[1764461926020,3.91630337,136.43,136.41,0.2]
[1764461931313,3.24630337,136.43,136.41,0.2]
[1764461931509,0.67,136.42,136.41,0.2]
[1764461932131,3.91630337,136.43,136.41,0.2]
[1764461932432,3.91630337,136.42,136.41,0.2]
[1764461932734,14.46660684,136.42,136.41,0.2]
[1764461936839,32.79236552,136.42,136.36,0.2]
[1764461937037,3.24630337,136.37,136.36,0.2]
[1764461937534,3.90630337,136.37,136.36,0.2]
[1764461938328,11.23929449,136.37,136.36,0.2]
[1764461940425,7.99299112,136.37,136.36,0.2]
[1764461940625,11.23929449,136.37,136.36,0.2]
[1764461942542,7.33299112,136.37,136.36,0.2]
[1764461942841,10.57929449,136.37,136.36,0.2]
[1764461943050,11.23929449,136.37,136.36,0.2]
[1764461944745,10.07738468,136.37,136.36,0.2]
[1764461945345,7.33299112,136.37,136.36,0.91]
[1764461946053,9.41654808,136.39,136.36,0.91]
[1764461946224,9.41654808,136.39,136.37,0.71]
[1764461947448,2.08439356,136.39,136.37,0.71]
[1764461947830,2.08439356,136.38,136.37,0.71]
[1764461949746,0.66,136.4,136.37,8.04299112]
[1764461949952,2.08439356,136.39,136.37,8.04299112]
[1764461950126,2.08439356,136.39,136.38,0.71]
[1764461951226,2.08439356,136.39,136.37,8.04299112]
[1764461951826,2.08439356,136.39,136.38,0.71]
[1764461952028,5.96439356,136.4,136.38,0.71]
[1764461952848,5.30439356,136.4,136.38,0.71]
[1764461955453,5.96439356,136.4,136.38,0.71]
[1764461956835,2.08439356,136.39,136.38,0.71]
[1764461957049,2.08439356,136.39,136.37,0.71]
[1764461957551,2.74439356,136.39,136.37,0.71]
[1764461959762,10.0763196,136.39,136.37,0.71]
[1764461961467,7.33192604,136.39,136.37,0.71]
[1764461961662,9.4163196,136.39,136.37,0.71]
[1764461966667,2.08439356,136.39,136.37,0.71]
[1764461966866,24.56223929,136.43,136.37,8.04293077]
[1764461967068,9.41489526,136.42,136.38,0.65]
[1764461967455,10.13489526,136.42,136.38,0.65]
[1764461967655,0.72,136.41,136.38,0.65]
[1764461968459,9.41489526,136.42,136.38,0.65]
[1764461969371,10.13419895,136.43,136.38,7.98233281]
[1764461969573,13.35419895,136.43,136.38,7.98233281]
[1764461969872,13.35419895,136.43,136.39,0.65]
[1764461971173,6.02439356,136.43,136.39,0.65]
[1764461971358,6.02439356,136.43,136.39,7.98159019]
[1764461971765,6.02439356,136.43,136.4,0.65]
[1764461973069,5.30439356,136.43,136.4,0.65]
[1764461973251,2.08439356,136.45,136.4,0.93432314]
[1764461973452,2.80439356,136.45,136.41,7.33084084]
[1764461973667,2.80439356,136.45,136.41,7.98084084]
[1764461973873,2.80439356,136.45,136.42,0.65]
[1764461974456,2.08439356,136.44,136.42,0.65]
[1764461974957,2.80439356,136.44,136.42,0.65]
[1764461975660,0.72,136.44,136.42,0.65]
[1764461975861,2.08439356,136.44,136.42,0.65]
[1764461978053,2.80439356,136.44,136.42,0.65]
[1764461982084,2.08439356,136.43,136.42,0.65]
[1764461983288,2.08439356,136.43,136.41,0.65]
[1764461986271,2.80439356,136.42,136.4,7.33125836]
[1764461986577,2.80439356,136.42,136.4,7.98125836]
[1764461987083,2.08439356,136.42,136.4,7.98125836]
[1764461988087,1.58439356,136.42,136.4,7.98125836]
[1764461990377,2.08439356,136.43,136.39,7.61623896]
[1764461990588,2.08439356,136.43,136.41,0.65]
[1764461990896,2.80439356,136.43,136.41,0.65]
[1764461991476,12.63395558,136.44,136.41,0.65]
[1764461991677,5.30439356,136.44,136.41,0.65]
[1764461991974,6.02439356,136.44,136.41,0.65]
[1764461992176,5.30439356,136.44,136.41,0.65]
[1764461992494,3.22,136.44,136.41,0.65]
[1764461992872,3.94,136.44,136.41,0.65]
[1764461993090,0.72,136.44,136.41,7.98063647]
[1764461993591,12.63271765,136.46,136.42,7.98024417]
[1764461993896,2.08439356,136.45,136.42,7.98024417]
[1764461994083,2.80439356,136.45,136.43,0.65]
[1764461996797,2.08439356,136.45,136.43,0.65]
[1764461997996,2.78439356,136.45,136.43,0.65]
[1764462000598,2.08439356,136.44,136.43,0.65]
[1764462000897,27.4308318,136.44,136.37,7.33281294]
[1764462001095,2.08439356,136.39,136.37,7.33281294]
[1764462001280,2.08439356,136.39,136.37,8.02281294]
[1764462001484,2.08439356,136.38,136.36,7.53341891]
[1764462001685,2.08439356,136.37,136.36,7.53341891]
[1764462001891,8.80994492,136.42,136.36,7.53341891]
[1764462002095,2.08439356,136.39,136.37,0.69]
[1764462003315,2.08439356,136.38,136.37,0.69]
[1764462004184,0.7,136.39,136.37,0.69]
[1764462004384,2.08439356,136.38,136.37,0.69]
[1764462004603,3.25574631,136.38,136.37,0.69]
[1764462004803,3.25574631,136.38,136.36,7.53341891]
[1764462005004,3.25574631,136.38,136.36,8.22341891]
[1764462005182,3.95574631,136.38,136.36,8.22341891]
[1764462005381,3.25574631,136.38,136.36,8.22341891]
[1764462006899,3.95574631,136.38,136.36,8.22341891]
[1764462007293,3.95574631,136.37,136.36,7.53341891]
[1764462007616,3.25574631,136.37,136.36,7.53341891]
[1764462008517,3.25574631,136.38,136.36,7.53341891]
[1764462008720,3.95574631,136.38,136.36,7.53341891]
[1764462009608,6.47574631,136.39,136.36,7.53341891]
[1764462009904,6.47574631,136.39,136.37,0.69]
[1764462010212,3.22,136.39,136.37,0.69]
[1764462010397,7.17574631,136.39,136.37,0.69]
[1764462012918,7.17574631,136.39,136.36,8.22341891]
[1764462014019,3.25574631,136.41,136.37,0.97432314]
[1764462014394,3.25574631,136.4,136.38,0.69]
[1764462015616,3.25574631,136.39,136.36,0.2]
[1764462015786,3.25574631,136.37,136.36,0.2]
[1764462016224,3.95574631,136.37,136.36,0.2]
[1764462032043,11.28873743,136.37,136.36,0.2]
[1764462032227,14.50873743,136.37,136.36,0.2]
[1764462040459,8.25527379,136.46,136.36,4.12574631]
[1764462040460,0.7,136.44,136.36,4.12574631]
[1764462040640,3.25574631,136.39,136.36,8.20309312]
[1764462040845,3.25574631,136.39,136.37,0.67]
[1764462041735,3.25574631,136.38,136.37,0.67]
[1764462042091,3.25574631,136.39,136.37,0.67]
[1764462042960,3.25574631,136.38,136.37,0.67]
[1764462054067,3.25574631,136.39,136.37,0.67]
[1764462058368,8.04161782,136.4,136.37,0.67]
[1764462058369,11.29736413,136.4,136.37,0.67]
[1764462058554,3.96574631,136.42,136.37,8.28714662]
[1764462058754,7.18574631,136.42,136.37,8.28714662]
[1764462058957,3.25574631,136.39,136.36,0.87]
[1764462059161,0.71,136.41,136.36,0.87]
[1764462059162,3.25574631,136.38,136.36,0.87]
[1764462060367,3.96574631,136.38,136.36,0.87]
[1764462060871,3.96574631,136.38,136.36,0.2]
[1764462061078,3.25574631,136.37,136.36,0.2]
[1764462061451,3.96574631,136.38,136.36,0.87]
[1764462064613,2.79378726,136.38,136.36,0.87]
[1764462066286,0.71,136.38,136.36,0.87]
[1764462071066,8.04247101,136.38,136.36,0.87]
[1764462074863,7.33247101,136.38,136.36,0.87]
[1764462076094,8.04247101,136.38,136.36,0.87]
[1764462079490,8.04247101,136.38,136.36,0.2]
[1764462079699,0.66,136.37,136.36,0.2]
[1764462080096,7.33247101,136.38,136.36,0.2]
[1764462080298,7.99247101,136.38,136.36,0.2]
[1764462081499,7.99247101,136.38,136.36,0.88]
[1764462081996,7.33247101,136.38,136.37,0.68]
[1764462082190,7.33173686,136.4,136.37,0.68]
[1764462082503,7.33173686,136.4,136.37,2.76378726]
[1764462082704,7.33173686,136.4,136.38,2.08378726]
[1764462082878,7.33173686,136.4,136.38,2.76378726]
[1764462083078,7.33173686,136.4,136.39,0.68]
[1764462085099,0.66,136.41,136.39,0.68]
[1764462085278,0.66,136.4,136.38,0.66]
[1764462085479,0.66,136.4,136.37,9.41634845]
[1764462085678,0.66,136.4,136.38,0.66]
[1764462086996,10.07544218,136.4,136.36,0.86]
[1764462087410,3.88,136.39,136.36,0.86]
[1764462088298,10.55232194,136.39,136.36,0.2]
[1764462088495,0.66,136.38,136.36,0.2]
[1764462088685,0.66,136.38,136.36,0.86]
[1764462090286,7.99256941,136.38,136.36,0.86]
[1764462093088,7.99256941,136.38,136.36,0.2]
[1764462094403,2.74378726,136.37,136.36,0.2]
[1764462095803,2.74378726,136.37,136.36,0.04096368]
[1764462096617,10.07677838,136.37,136.36,0.04096368]
[1764462096798,7.33299112,136.37,136.36,0.70096368]
[1764462096996,11.21299112,136.37,136.36,0.04096368]
[1764462100011,10.55299112,136.37,136.36,0.04096368]
[1764462100418,7.33299112,136.37,136.36,0.04096368]
[1764462100716,10.55299112,136.37,136.36,0.04096368]
[1764462101215,11.21299112,136.37,136.36,0.04096368]
[1764462102012,13.29677838,136.37,136.36,0.04096368]
[1764462115412,12.63677838,136.37,136.36,0.72096368]
[1764462115622,10.55299112,136.37,136.36,0.72096368]
[1764462117319,10.55299112,136.37,136.36,0.04096368]
[1764462118719,10.55299112,136.37,136.36,0.72096368]
[1764462120230,3.22,136.37,136.36,0.72096368]
[1764462123127,18.32728086,136.41,136.36,0.72096368]
[1764462123317,3.22,136.4,136.36,2.80475094]
[1764462123716,3.22,136.4,136.37,0.68]
[1764462124433,23.6386966,136.43,136.38,2.08378726]
[1764462124692,3.22,136.42,136.38,2.08378726]
[1764462124808,3.22,136.42,136.39,0.68]
[1764462125517,3.22,136.42,136.39,8.01183663]
[1764462125913,3.22,136.42,136.4,0.68]
[1764462131044,7.3298326,136.43,136.4,0.68]
[1764462131258,10.5498326,136.43,136.4,0.68]
[1764462133055,3.22,136.43,136.4,0.68]
[1764462133732,11.24980994,136.43,136.4,0.68]
[1764462134854,3.22,136.43,136.4,8.01124405]
[1764462135225,3.22,136.43,136.41,0.68]
[1764462143177,7.17343837,136.43,136.4,0.68]
[1764462143358,14.50468242,136.43,136.4,0.68]
[1764462143973,21.83444903,136.43,136.4,0.68]
[1764462149180,18.58101066,136.43,136.4,0.68]
[1764462155075,21.13444903,136.43,136.39,7.33171477]
[1764462155281,0.7,136.42,136.39,0.71]
[1764462155585,0.7,136.42,136.38,7.61677657]
[1764462155766,0.7,136.42,136.4,0.71]
[1764462158677,21.83444903,136.43,136.4,0.71]
[1764462160572,3.95343837,136.42,136.38,0.71]
[1764462160780,3.25343837,136.39,136.36,0.75096368]
[1764462161074,6.47343837,136.38,136.36,0.04096368]
[1764462161480,10.42687674,136.38,136.36,0.04096368]
[1764462161966,7.17343837,136.38,136.36,0.04096368]
[1764462162166,7.17343837,136.38,136.36,0.75096368]
[1764462162573,3.22,136.39,136.36,0.75096368]
[1764462163174,26.35920481,136.4,136.36,4.00440205]
[1764462163378,3.22,136.39,136.36,4.00440205]
[1764462163576,18.33532565,136.41,136.37,3.96343837]
[1764462163758,3.22,136.41,136.37,0.85216157]
[1764462163958,3.22,136.41,136.38,0.71]
[1764462164159,3.22,136.41,136.38,8.04201308]
[1764462164581,3.22,136.41,136.39,0.71]
[1764462170273,3.22,136.42,136.39,8.04188923]
[1764462170671,3.22,136.42,136.4,0.71]
[1764462172980,3.22,136.42,136.4,0.71]
[1764462179697,3.87,136.42,136.4,0.71]
[1764462185896,3.22,136.42,136.4,0.71]
[1764462187397,3.87,136.42,136.4,0.71]
[1764462188893,2.73227893,136.41,136.38,7.33245343]
[1764462189101,2.73227893,136.41,136.38,8.03245343]
[1764462189286,0.65,136.4,136.38,8.03245343]
[1764462190171,0.65,136.4,136.38,0.7]
[1764462190371,2.73227893,136.4,136.36,0.04096368]
[1764462190576,2.08227893,136.37,136.36,0.04096368]
[1764462191192,2.73227893,136.37,136.36,0.04096368]
[1764462192220,10.06527005,136.37,136.36,0.04096368]
[1764462207707,13.28527005,136.37,136.36,0.04096368]
[1764462208391,12.63527005,136.37,136.36,0.72096368]
[1764462208591,10.55299112,136.37,136.36,0.72096368]
[1764462208792,12.63527005,136.37,136.36,0.72096368]
[1764462209095,12.63527005,136.37,136.36,0.04096368]
[1764462209893,13.35527005,136.37,136.36,0.04096368]
[1764462212920,12.63527005,136.37,136.36,0.04096368]
[1764462213397,13.35527005,136.37,136.36,0.04096368]
[1764462213598,12.63527005,136.37,136.36,0.04096368]
[1764462213796,13.35527005,136.37,136.36,0.04096368]
[1764462214619,12.63527005,136.37,136.36,0.04096368]
[1764462215221,13.35527005,136.37,136.36,0.04096368]
[1764462215718,12.63527005,136.37,136.36,0.04096368]
[1764462215924,13.35527005,136.37,136.36,0.04096368]
[1764462216099,3.22,136.37,136.36,0.04096368]
[1764462216301,2.80227893,136.41,136.36,0.72096368]
[1764462216599,6.02227893,136.41,136.36,0.72096368]
[1764462217202,5.30227893,136.41,136.36,0.72096368]
[1764462217493,0.72,136.4,136.36,8.05446116]
[1764462217923,8.05141526,136.4,136.37,0.68]
[1764462219027,12.63329023,136.41,136.37,0.68]
[1764462219224,13.35329023,136.41,136.37,0.68]
[1764462221530,9.41378088,136.4,136.37,0.68]
[1764462221829,10.13378088,136.4,136.37,0.68]
[1764462226409,9.41378088,136.4,136.37,0.68]
[1764462227634,10.13378088,136.4,136.37,0.68]
[1764462240454,2.08227893,136.38,136.36,0.04096368]
[1764462240849,2.80227893,136.38,136.36,0.04096368]
[1764462242050,0.72,136.38,136.36,0.04096368]
[1764462242247,0.72,136.38,136.36,0.70096368]
[1764462243360,2.08227893,136.37,136.36,0.04096368]
[1764462243554,2.80227893,136.37,136.36,0.04096368]
[1764462244464,10.13527005,136.37,136.36,0.04096368]
[1764462248580,11.30994657,136.37,136.36,0.04096368]
[1764462248970,10.55299112,136.37,136.36,0.04096368]
[1764462250685,7.33299112,136.37,136.36,0.04096368]
[1764462252482,8.05299112,136.37,136.36,0.04096368]
[1764462255698,7.33299112,136.37,136.36,0.04096368]
[1764462257484,8.05299112,136.37,136.36,0.04096368]
[1764462257879,14.52957855,136.38,136.36,0.04096368]
[1764462258587,3.25695545,136.37,136.36,0.04096368]
[1764462259588,3.25695545,136.37,136.36,0.70096368]
[1764462260092,3.25695545,136.37,136.36,0.04096368]
[1764462262691,13.80957855,136.38,136.36,0.71096368]
[1764462262881,10.5526231,136.38,136.36,0.71096368]
[1764462264097,11.2426231,136.38,136.36,0.71096368]
[1764462264885,14.49957855,136.38,136.36,0.71096368]
[1764462293511,7.16695545,136.38,136.36,0.71096368]
[1764462293836,0.7,136.44,136.38,0.28432314]
[1764462294133,3.25695545,136.4,136.38,0.66]
[1764462295614,11.2879314,136.41,136.38,0.66]
[1764462300538,10.54999405,136.43,136.39,3.25695545]
[1764462301049,10.54999405,136.43,136.4,0.68]
[1764462304235,11.21999405,136.43,136.4,0.68]
[1764462305529,27.52885805,136.43,136.4,0.68]
[1764462306640,23.63885805,136.43,136.4,0.68]
[1764462307558,16.308864,136.43,136.4,0.68]
[1764462309155,16.308864,136.43,136.4,8.01133501]
[1764462309347,16.308864,136.43,136.41,0.68]
[1764462310257,16.978864,136.43,136.41,0.68]
[1764462310651,16.308864,136.43,136.41,0.68]
[1764462311468,0.67,136.44,136.41,8.01064922]
[1764462311654,7.33133501,136.43,136.41,8.01064922]
[1764462311828,7.33133501,136.43,136.42,0.68]
[1764462313666,7.33133501,136.43,136.42,8.01030347]
[1764462315860,7.33133501,136.43,136.42,0.68]
[1764462316952,7.33133501,136.43,136.41,8.01068667]
[1764462317961,7.33133501,136.43,136.4,7.33137829]
[1764462318141,7.33133501,136.43,136.42,0.68]
[1764462319058,7.33133501,136.43,136.41,0.68]
[1764462322067,7.33133501,136.43,136.41,8.01078584]
[1764462323486,10.13309743,136.43,136.4,7.33136305]
[1764462323778,0.72,136.42,136.4,7.33136305]
[1764462324151,10.85309743,136.42,136.4,7.33136305]
[1764462324473,10.85309743,136.42,136.4,0.71]
[1764462325160,10.13309743,136.42,136.4,0.71]
[1764462325574,10.13309743,136.42,136.4,8.04130805]
[1764462326071,10.13309743,136.42,136.4,7.33130805]
[1764462326376,10.82309743,136.42,136.4,7.33130805]
[1764462326554,10.82309743,136.42,136.39,18.32888819]
[1764462326853,10.82309743,136.42,136.4,0.66]
[1764462327776,10.82309743,136.42,136.4,7.99136542]
[1764462330480,10.82309743,136.42,136.4,0.66]
[1764462332178,2.77176242,136.41,136.36,0.04096368]
[1764462332478,2.08176242,136.37,136.36,0.04096368]
[1764462332858,2.77176242,136.37,136.36,0.04096368]
[1764462333058,5.70980641,136.37,136.36,0.04096368]
[1764462333256,2.93804399,136.37,136.36,0.04096368]
[1764462333472,2.93804399,136.37,136.36,0.70096368]
[1764462333787,2.93804399,136.37,136.36,0.04096368]
[1764462339368,3.62804399,136.37,136.36,0.04096368]
[1764462340793,2.93804399,136.37,136.36,0.04096368]
[1764462341880,5.01980641,136.37,136.36,0.04096368]
[1764462347576,2.08176242,136.37,136.36,0.04096368]
[1764462348604,2.77176242,136.37,136.36,0.04096368]
[1764462348899,2.08176242,136.37,136.36,0.04096368]
[1764462349300,18.57692971,136.38,136.36,0.04096368]
[1764462349301,20.65869213,136.38,136.36,0.04096368]
[1764462352819,13.32615879,136.38,136.36,0.70096368]
[1764462353313,7.33439637,136.38,136.36,0.70096368]
[1764462353625,104.4,136.42,136.36,0.70096368]
[1764462353626,2.08176242,136.41,136.37,7.33299112]
[1764462353804,20.47238884,136.41,136.38,0.66]
[1764462354208,18.39062642,136.41,136.38,0.66]
[1764462354890,20.47238884,136.41,136.38,0.66]
[1764462355217,18.39062642,136.41,136.38,7.99214323]
[1764462355818,18.39062642,136.41,136.39,0.72]
[1764462356910,5.99176242,136.42,136.39,0.72]
[1764462357114,24.38238884,136.42,136.39,0.72]
[1764462357414,31.71280485,136.42,136.39,0.72]
[1764462359621,24.38238884,136.42,136.39,0.72]
[1764462360491,3.22,136.42,136.39,8.05160847]
[1764462360694,9.41158338,136.43,136.39,8.05160847]
[1764462360911,32.11882373,136.43,136.4,0.72]
[1764462361222,10.09158338,136.43,136.4,0.72]
[1764462361609,7.33160847,136.42,136.4,0.72]
[1764462362318,10.09337089,136.42,136.39,0.72]
[1764462363522,10.09337089,136.42,136.39,8.05171244]
[1764462365529,2.76176242,136.42,136.39,8.05171244]
[1764462365829,2.76176242,136.42,136.4,0.72]
[1764462366021,0.68,136.42,136.4,0.72]
[1764462367228,2.76176242,136.42,136.39,7.33171244]
[1764462367730,0.68,136.41,136.39,7.33171244]
[1764462368232,0.68,136.41,136.39,8.05171244]
[1764462369431,2.76176242,136.42,136.39,8.05171244]
[1764462371828,0.68,136.42,136.39,8.05171244]
[1764462373336,0.68,136.42,136.4,0.72]
[1764462374836,0.68,136.42,136.39,8.05171244]
[1764462375136,0.68,136.42,136.4,0.72]
[1764462376035,0.68,136.42,136.39,8.05171244]
[1764462376511,3.93386481,136.42,136.39,8.05171244]
[1764462377536,3.93386481,136.42,136.39,7.33171244]
[1764462377738,3.93386481,136.42,136.4,0.72]
[1764462380226,0.68,136.42,136.4,0.72]
[1764462380429,3.93386481,136.42,136.4,0.72]
[1764462381836,3.92386481,136.41,136.38,8.04223989]
[1764462382221,0.67,136.4,136.38,8.04223989]
[1764462383749,0.67,136.4,136.37,26.37464004]
[1764462384151,3.25386481,136.39,136.36,8.08428065]
[1764462384334,3.25386481,136.37,136.36,0.04096368]
[1764462384846,3.92386481,136.37,136.36,0.04096368]
[1764462385226,6.47386481,136.38,136.36,0.04096368]
[1764462385427,7.16386481,136.38,136.36,0.04096368]
[1764462385748,5.25386481,136.43,136.37,3.92386481]
[1764462385749,19.01575534,136.43,136.37,3.92386481]
[1764462385947,3.94386481,136.42,136.37,4.20818795]
[1764462386157,3.94386481,136.42,136.38,0.67]
[1764462386362,0.69,136.41,136.38,0.67]
[1764462387400,0.69,136.41,136.38,8.00236062]
[1764462387839,10.5843369,136.42,136.39,0.67]
[1764462388031,11.2743369,136.42,136.39,0.67]
[1764462393167,0.69,136.41,136.39,0.67]
[1764462393870,0.69,136.41,136.37,7.61712921]
[1764462394070,3.94386481,136.41,136.38,0.67]
[1764462394364,7.16386481,136.41,136.38,0.67]
[1764462394570,3.94386481,136.4,136.37,8.28712921]
[1764462395070,3.94386481,136.4,136.38,0.67]
[1764462395566,7.16386481,136.41,136.38,0.67]
[1764462398154,3.91,136.41,136.38,0.67]
[1764462398549,14.49484604,136.41,136.38,0.67]
[1764462399278,0.69,136.4,136.38,0.67]
[1764462399456,3.94386481,136.4,136.37,0.67]
[1764462400484,0.69,136.4,136.37,0.67]
[1764462402181,8.02138135,136.4,136.37,0.67]
[1764462404906,10.58524616,136.4,136.36,0.04096368]
[1764462405057,3.94386481,136.39,136.36,0.71096368]
[1764462405262,6.47386481,136.38,136.36,0.04096368]
[1764462405471,7.16386481,136.38,136.36,0.04096368]
[1764462406179,7.33299112,136.37,136.36,0.04096368]
[1764462407285,121.398864,136.42,136.36,3.96482849]
[1764462407486,0.69,136.41,136.37,3.25386481]
[1764462407661,0.69,136.41,136.37,3.92386481]
[1764462407859,0.69,136.41,136.38,0.67]
[1764462408263,8.02127851,136.41,136.38,0.67]
[1764462413185,21.82699574,136.43,136.38,8.0021919]
[1764462413378,0.69,136.42,136.38,8.0021919]
[1764462413582,0.69,136.42,136.39,0.67]
[1764462414989,8.02031597,136.42,136.39,0.67]
[1764462415996,11.22031597,136.42,136.39,0.67]
[1764462416174,3.89,136.42,136.39,0.67]
[1764462417595,11.22030863,136.42,136.39,0.67]
[1764462417787,14.47417344,136.42,136.39,0.67]
[1764462419200,3.25386481,136.41,136.39,0.67]
[1764462420304,3.25386481,136.4,136.38,8.0221919]
[1764462421111,3.25386481,136.4,136.39,0.69]
[1764462423090,3.25386481,136.41,136.39,0.69]
[1764462427101,3.92386481,136.41,136.38,8.0221919]
[1764462427307,0.67,136.4,136.38,8.0221919]
[1764462427604,3.25386481,136.41,136.39,0.69]
[1764462431086,3.92386481,136.41,136.39,0.69]
[1764462432918,3.92386481,136.41,136.39,8.02188541]
[1764462433214,3.92386481,136.41,136.39,0.69]
[1764462433993,3.92386481,136.4,136.38,8.02226263]
[1764462434813,2.75318412,136.4,136.38,8.02226263]
[1764462440815,7.33035635,136.42,136.38,7.33226263]
[1764462441111,8.04035635,136.42,136.39,0.72]
[1764462441294,2.08318412,136.41,136.39,8.05155848]
[1764462441812,2.08318412,136.41,136.4,0.72]
[1764462442215,2.08318412,136.42,136.4,0.72]
[1764462442605,2.79318412,136.43,136.4,0.72]
[1764462442917,2.79318412,136.43,136.4,8.05110702]
[1764462443511,2.79318412,136.43,136.41,0.72]
[1764462444619,2.08318412,136.42,136.41,0.72]
[1764462445317,2.08318412,136.42,136.41,0.72]
[1764462445909,2.08318412,136.43,136.41,0.72]
[1764462448000,2.08318412,136.44,136.41,8.0505743]
[1764462448614,7.32761614,136.48,136.42,0.96432314]
[1764462448917,2.08318412,136.43,136.42,0.68]
[1764462449696,2.08318412,136.43,136.42,8.01030347]
[1764462450010,2.08318412,136.44,136.42,8.01030347]
[1764462452321,2.80318412,136.43,136.36,0.04096368]
[1764462452530,2.08318412,136.37,136.36,0.72096368]
[1764462452732,2.08318412,136.37,136.36,0.04096368]
[1764462453101,2.08318412,136.38,136.36,8.05444846]
[1764462453604,2.08318412,136.38,136.37,0.68]
[1764462458328,0.72,136.39,136.37,0.68]
[1764462458521,2.08318412,136.38,136.37,0.68]
[1764462464334,2.08318412,136.4,136.37,8.01282228]
[1764462464720,2.08318412,136.4,136.38,0.68]
[1764462465923,2.08318412,136.4,136.38,8.01225289]
[1764462467031,2.08318412,136.39,136.38,8.01225289]
[1764462467211,2.08318412,136.4,136.39,0.68]
[1764462477064,2.08318412,136.4,136.39,8.01191582]
[1764462479465,2.08318412,136.4,136.38,8.02245343]
[1764462481129,2.08318412,136.4,136.39,0.69]
[1764462485163,2.08318412,136.4,136.38,8.02245343]
[1764462493961,2.78318412,136.4,136.38,8.02245343]
[1764462494148,2.08318412,136.39,136.38,8.02245343]
[1764462494569,3.25503704,136.39,136.38,8.02245343]
[1764462498171,3.95503704,136.4,136.38,8.02245343]
[1764462499164,0.7,136.39,136.38,7.33245343]
[1764462499551,3.95503704,136.4,136.38,7.33245343]
[1764462500054,3.97503704,136.39,136.36,0.04096368]
[1764462500246,3.25503704,136.37,136.36,0.04096368]
[1764462500653,3.97503704,136.37,136.36,0.04096368]
[1764462500853,6.9135127,136.37,136.36,0.04096368]
[1764462502475,14.24650382,136.37,136.36,0.04096368]
[1764462506283,14.21146678,136.37,136.36,0.04096368]
[1764462506583,22.57273777,136.37,136.36,0.04096368]
[1764462512592,50.94658373,136.37,136.36,0.04096368]
[1764462513077,50.94658373,136.37,136.32,0.2]
[1764462513078,69.27906154,136.37,136.32,0.2]
[1764462513278,3.25503704,136.33,136.32,0.2]